fUSD/lending_fUSD_20250223
["ID","MTS","AMOUNT","RATE_DAILY","PERIOD"]
[354227454,1740353466843,-1902.86,0.00016684,2]
[354227455,1740353466853,-500.0,0.00016684,2]
[354227456,1740353466863,-1861.3,0.00016684,2]
[354227457,1740353466872,-765.49,0.00016684,2]
[354227458,1740353466881,-2451.09,0.00016684,2]
[354227459,1740353466891,-500.0,0.00016684,2]
[354227460,1740353466900,-2947.25,0.00016684,2]
[354227461,1740353466910,-1148.74,0.00016684,2]
[354227462,1740353466919,-921.14,0.00016684,2]
[354227463,1740353466929,-2393.08,0.00016684,2]
[354227464,1740353466938,-3399.41,0.00016684,2]
[354227465,1740353466947,-1427.95,0.00016684,2]
[354227466,1740353466956,-2168.65,0.00016684,2]
[354227467,1740353466965,-3075.28,0.00016684,2]
[354227468,1740353466975,-2865.2,0.00016684,2]
[354227469,1740353466986,-738.31,0.00016684,2]
[354227470,1740353466996,-1270.01,0.00016684,2]
[354227471,1740353467005,-559.85,0.00016684,2]
[354227472,1740353467014,-500.0,0.00016684,2]
[354227473,1740353467024,-500.0,0.00016684,2]
[354227474,1740353467033,-500.0,0.00016684,2]
[354227475,1740353467044,-4248.12,0.00016684,2]
[354227476,1740353467054,-889.27,0.00016684,2]
[354227477,1740353467063,-2925.06,0.00016684,2]
[354227478,1740353467073,-810.72,0.00016684,2]
[354227479,1740353467083,-2205.82,0.00016684,2]
[354227480,1740353467092,-2039.78,0.00016684,2]
[354227481,1740353467102,-978.16,0.00016684,2]
[354227482,1740353467111,-151.0,0.00016684,2]
[354227483,1740353467120,-151.0,0.00016684,2]
[354227484,1740353467130,-500.0,0.00016684,2]
[354227485,1740353467139,-1056.99,0.00016684,2]
[354227486,1740353467148,-961.55,0.00016684,2]
[354227487,1740353467157,-500.0,0.00016684,2]
[354227488,1740353467167,-500.0,0.00016684,2]
[354227489,1740353467176,-1065.57,0.00016684,2]
[354227490,1740353467185,-500.0,0.00016684,2]
[354227491,1740353467194,-151.0,0.00016684,2]
[354227492,1740353467204,-3889.56,0.00016684,2]
[354227493,1740353467213,-1286.75,0.00016684,2]
[354227494,1740353467223,-1867.88,0.00016684,2]
[354227495,1740353467232,-500.0,0.00016684,2]
[354227496,1740353467241,-500.0,0.00016684,2]
[354227497,1740353467251,-500.0,0.00016684,2]
[354227498,1740353467261,-500.0,0.00016684,2]
[354227499,1740353467270,-4249.4,0.00016684,2]
[354227500,1740353467279,-2861.57,0.00016684,2]
[354227501,1740353467289,-1253.92,0.00016684,2]
[354227502,1740353467299,-500.0,0.00016684,2]
[354227503,1740353467308,-514.67,0.00016684,2]
[354227504,1740353467318,-1535.67,0.00016684,2]
[354227505,1740353467328,-500.0,0.00016684,2]
[354227506,1740353467338,-500.0,0.00016684,2]
[354227507,1740353467348,-500.0,0.00016684,2]
[354227508,1740353467358,-527.21,0.00016684,2]
[354227509,1740353467367,-1547.08,0.00016684,2]
[354227510,1740353467377,-500.0,0.00016684,2]
[354227511,1740353467387,-1280.01,0.00016684,2]
[354227512,1740353467396,-1789.28,0.00016684,2]
[354227513,1740353467405,-500.0,0.00016684,2]
[354227514,1740353467414,-2104.09,0.00016684,2]
[354227515,1740353467423,-500.0,0.00016684,2]
[354227516,1740353467432,-3204.29,0.00016684,2]
[354227517,1740353467442,-700.04,0.00016684,2]
[354227518,1740353467451,-500.0,0.00016684,2]
[354227519,1740353467460,-811.44,0.00016684,2]
[354227520,1740353467470,-3741.91,0.00016684,2]
[354227521,1740353467479,-500.0,0.00016684,2]
[354227522,1740353467493,-849.84,0.00016684,2]
[354227523,1740353467502,-6894.13,0.00016684,2]
[354227524,1740353467511,-1185.61,0.00016684,2]
[354227525,1740353467521,-2904.93,0.00016684,2]
[354227526,1740353467530,-623.3,0.00016684,2]
[354227527,1740353467539,-510.39,0.00016684,2]
[354227528,1740353467548,-500.0,0.00016684,2]
[354227529,1740353467558,-500.0,0.00016684,2]
[354227530,1740353467567,-2119.38,0.00016684,2]
[354227531,1740353467576,-641.15,0.00016684,2]
[354227532,1740353467585,-2112.78,0.00016684,2]
[354227533,1740353467595,-1083.69,0.00016684,2]
[354227534,1740353467604,-1421.77,0.00016684,2]
[354227535,1740353467613,-500.0,0.00016684,2]
[354227536,1740353467623,-500.0,0.00016684,2]
[354227537,1740353467636,-2508.93,0.00016684,2]
[354227538,1740353467645,-1065.63,0.00016684,2]
[354227539,1740353467654,-498.96,0.00016684,2]
[354227540,1740353467663,-150.0,0.00016692,2]
[354227541,1740353467672,-1694.0,0.00016694,2]
[354227542,1740353467681,-1663.0,0.000167,2]
[354227543,1740353467691,-367.0,0.000167,2]
[354227544,1740353467701,-567.0,0.000167,2]
[354227545,1740353467711,-231.0,0.000167,2]
[354227546,1740353467720,-160.17133937,0.00016712,2]
[354227547,1740353467730,-240.25700906,0.00016712,2]
[354227548,1740353467739,-150.0,0.00016718,2]
[354227549,1740353467748,-150.0,0.00016748,2]
[354227550,1740353467758,-6390.25849612,0.00016749,2]
[354227551,1740353467767,-578.36471476,0.00016749,2]
[354227552,1740353467777,-317.01289798,0.0001675,2]
[354227553,1740353467786,-1000.0,0.00016751,2]
[354227554,1740353467796,-2566.7074404,0.00016752,2]
[354227555,1740353467806,-151.0,0.00016766,2]
[354227556,1740353467815,-151.0,0.00016766,2]
[354227557,1740353467824,-668.13,0.00016766,2]
[354227558,1740353467833,-151.0,0.00016766,2]
[354227559,1740353467842,-151.0,0.00016766,2]
[354227560,1740353467852,-151.0,0.00016766,2]
[354227561,1740353467861,-151.0,0.00016766,2]
[354227562,1740353467870,-151.0,0.00016766,2]
[354227563,1740353467879,-151.0,0.00016766,2]
[354227564,1740353467888,-500.0,0.00016766,2]
[354227565,1740353467897,-500.0,0.00016766,2]
[354227566,1740353467906,-822.09,0.00016767,2]
[354227567,1740353467915,-500.0,0.00016767,2]
[354227568,1740353467924,-500.0,0.00016767,2]
[354227569,1740353467934,-500.0,0.00016767,2]
[354227570,1740353467943,-547.16006541,0.00016767,2]
[354227571,1740353467954,-740.11,0.00016767,2]
[354227572,1740353467963,-950.11,0.00016767,2]
[354227573,1740353467973,-500.0,0.00016767,2]
[354227574,1740353467984,-500.0,0.00016767,2]
[354227575,1740353467994,-500.0,0.00016767,2]
[354227576,1740353468002,-500.0,0.00016767,2]
[354227577,1740353468011,-755.07,0.00016767,2]
[354227578,1740353468022,-500.0,0.00016767,2]
[354227579,1740353468031,-500.0,0.00016767,2]
[354227580,1740353468043,-500.0,0.00016767,2]
[354227581,1740353468052,-500.0,0.00016767,2]
[354227582,1740353468064,-500.0,0.00016767,2]
[354227583,1740353468074,-500.0,0.00016767,2]
[354227584,1740353468083,-500.0,0.00016767,2]
[354227585,1740353468091,-151.0,0.00016767,2]
[354227586,1740353468102,-944.75,0.00016767,2]
[354227587,1740353468111,-500.0,0.00016767,2]
[354227588,1740353468120,-500.0,0.00016767,2]
[354227589,1740353468130,-500.0,0.00016767,2]
[354227590,1740353468139,-500.0,0.00016767,2]
[354227591,1740353468149,-500.0,0.00016767,2]
[354227592,1740353468159,-500.0,0.00016767,2]
[354227593,1740353468168,-500.0,0.00016767,2]
[354227594,1740353468176,-500.0,0.00016767,2]
[354227595,1740353468186,-626.53,0.00016767,2]
[354227596,1740353468196,-684.82,0.00016767,2]
[354227597,1740353468207,-500.0,0.00016767,2]
[354227598,1740353468217,-500.0,0.00016767,2]
[354227599,1740353468227,-519.25704517,0.00016767,2]
[354227600,1740353468235,-500.0,0.00016767,2]
[354227601,1740353468245,-500.0,0.00016767,2]
[354227602,1740353468255,-500.0,0.00016767,2]
[354227603,1740353468263,-500.0,0.00016767,2]
[354227604,1740353468272,-817.57,0.00016767,2]
[354227605,1740353468282,-500.0,0.00016767,2]
[354227606,1740353468292,-585.52,0.00016767,2]
[354227607,1740353468301,-511.2,0.00016767,2]
[354227608,1740353468310,-806.31,0.00016767,2]
[354227609,1740353468320,-500.0,0.00016767,2]
[354227610,1740353468329,-500.0,0.00016767,2]
[354227611,1740353468339,-500.0,0.00016767,2]
[354227612,1740353468349,-554.64,0.00016767,2]
[354227613,1740353468362,-500.0,0.00016767,2]
[354227614,1740353468372,-500.0,0.00016767,2]
[354227615,1740353468382,-640.95,0.00016767,2]
[354227616,1740353468391,-500.0,0.00016767,2]
[354227617,1740353468400,-500.0,0.00016767,2]
[354227618,1740353468410,-730.72,0.00016767,2]
[354227619,1740353468419,-500.0,0.00016767,2]
[354227620,1740353468428,-500.0,0.00016767,2]
[354227621,1740353468437,-500.0,0.00016767,2]
[354227622,1740353468446,-500.0,0.00016767,2]
[354227623,1740353468456,-516.69,0.00016767,2]
[354227624,1740353468464,-500.0,0.00016767,2]
[354227625,1740353468474,-500.0,0.00016767,2]
[354227626,1740353468483,-500.0,0.00016767,2]
[354227627,1740353468492,-500.0,0.00016767,2]
[354227628,1740353468501,-500.0,0.00016767,2]
[354227629,1740353468511,-500.0,0.00016767,2]
[354227630,1740353468520,-187.2868206,0.00016767,2]
[354227631,1740353468529,-500.0,0.00016767,2]
[354227632,1740353468539,-500.0,0.00016767,2]
[354227633,1740353468548,-500.0,0.00016767,2]
[354227634,1740353468557,-500.0,0.00016767,2]
[354227635,1740353468567,-520.84,0.00016767,2]
[354227636,1740353468576,-500.0,0.00016767,2]
[354227637,1740353468585,-441.16641287,0.00016767,2]
[354227638,1740353468594,-500.0,0.00016767,2]
[354227639,1740353468603,-500.0,0.00016767,2]
[354227640,1740353468612,-500.0,0.00016767,2]
[354227641,1740353468621,-500.0,0.00016767,2]
[354227642,1740353468630,-500.0,0.00016767,2]
[354227643,1740353468639,-552.39,0.00016767,2]
[354227644,1740353468648,-500.0,0.00016767,2]
[354227645,1740353468657,-500.0,0.00016767,2]
[354227646,1740353468666,-528.39,0.00016767,2]
[354227647,1740353468675,-515.24703848,0.00016767,2]
[354227648,1740353468683,-500.0,0.00016767,2]
[354227649,1740353468693,-860.18,0.00016767,2]
[354227650,1740353468702,-500.0,0.00016767,2]
[354227651,1740353468711,-500.0,0.00016767,2]
[354227652,1740353468720,-500.0,0.00016767,2]
[354227653,1740353468729,-764.47,0.00016767,2]
[354227654,1740353468738,-500.0,0.00016767,2]
[354227655,1740353468747,-500.0,0.00016767,2]
[354227656,1740353468757,-151.0,0.00016767,2]
[354227657,1740353468766,-500.0,0.00016767,2]
[354227658,1740353468775,-500.0,0.00016767,2]
[354227659,1740353468784,-564.11842645,0.00016767,2]
[354227660,1740353468794,-1111.83,0.00016767,2]
[354227661,1740353468803,-500.0,0.00016767,2]
[354227662,1740353468812,-500.0,0.00016767,2]
[354227663,1740353468821,-500.0,0.00016767,2]
[354227664,1740353468830,-871.11,0.00016767,2]
[354227665,1740353468839,-500.0,0.00016767,2]
[354227666,1740353468848,-269.34490706,0.00016767,2]
[354227667,1740353468857,-500.0,0.00016767,2]
[354227668,1740353468865,-500.0,0.00016767,2]
[354227669,1740353468874,-500.0,0.00016767,2]
[354227670,1740353468883,-653.59,0.00016767,2]
[354227671,1740353468892,-500.0,0.00016767,2]
[354227672,1740353468901,-1545.06,0.00016767,2]
[354227673,1740353468909,-500.0,0.00016767,2]
[354227674,1740353468918,-500.0,0.00016767,2]
[354227675,1740353468926,-1353.57,0.00016767,2]
[354227676,1740353468935,-500.0,0.00016767,2]
[354227677,1740353468944,-523.27,0.00016767,2]
[354227678,1740353468953,-500.0,0.00016767,2]
[354227679,1740353468962,-500.0,0.00016767,2]
[354227680,1740353468971,-1352.93,0.00016767,2]
[354227681,1740353468983,-1011.08,0.00016767,2]
[354227682,1740353468992,-1000.26,0.00016767,2]
[354227683,1740353469003,-1500.09,0.00016767,2]
[354227684,1740353469013,-500.0,0.00016767,2]
[354227685,1740353469022,-708.96,0.00016767,2]
[354227686,1740353469032,-500.0,0.00016767,2]
[354227687,1740353469041,-575.78,0.00016767,2]
[354227688,1740353469050,-1015.35,0.00016767,2]
[354227689,1740353469059,-991.38,0.00016767,2]
[354227690,1740353469068,-1549.18,0.00016767,2]
[354227691,1740353469078,-529.22,0.00016767,2]
[354227692,1740353469087,-829.1,0.00016767,2]
[354227693,1740353469096,-395.80029562,0.00016767,2]
[354227694,1740353469104,-500.0,0.00016767,2]
[354227695,1740353469113,-859.55,0.00016767,2]
[354227696,1740353469123,-1497.27,0.00016767,2]
[354227697,1740353469132,-500.0,0.00016767,2]
[354227698,1740353469141,-500.0,0.00016767,2]
[354227699,1740353469150,-500.0,0.00016767,2]
[354227700,1740353469159,-500.0,0.00016767,2]
[354227701,1740353469168,-1436.02,0.00016767,2]
[354227702,1740353469178,-721.44,0.00016767,2]
[354227703,1740353469187,-769.04,0.00016767,2]
[354227704,1740353469196,-500.0,0.00016767,2]
[354227705,1740353469206,-841.61,0.00016767,2]
[354227706,1740353469214,-1264.07,0.00016767,2]
[354227707,1740353469224,-599.2,0.00016767,2]
[354227708,1740353469233,-1067.3,0.00016767,2]
[354227709,1740353469242,-500.0,0.00016767,2]
[354227710,1740353469251,-800.15,0.00016767,2]
[354227711,1740353469261,-1000.0,0.00016767,2]
[354227712,1740353469270,-793.84,0.00016767,2]
[354227713,1740353469279,-500.0,0.00016767,2]
[354227714,1740353469287,-500.0,0.00016767,2]
[354227715,1740353469300,-500.0,0.00016767,2]
[354227716,1740353469309,-554.26,0.00016767,2]
[354227717,1740353469318,-878.11,0.00016767,2]
[354227718,1740353469327,-1660.82,0.00016767,2]
[354227719,1740353469336,-1323.9,0.00016767,2]
[354227720,1740353469345,-591.7,0.00016767,2]
[354227721,1740353469354,-500.0,0.00016767,2]
[354227722,1740353469363,-1304.43,0.00016767,2]
[354227723,1740353469372,-500.0,0.00016767,2]
[354227724,1740353469381,-655.13,0.00016767,2]
[354227725,1740353469390,-613.34,0.00016767,2]
[354227726,1740353469399,-819.66,0.00016767,2]
[354227727,1740353469408,-1327.72,0.00016767,2]
[354227728,1740353469417,-601.57,0.00016767,2]
[354227729,1740353469426,-500.0,0.00016767,2]
[354227730,1740353469435,-842.39,0.00016767,2]
[354227731,1740353469444,-500.0,0.00016767,2]
[354227732,1740353469453,-925.77,0.00016767,2]
[354227733,1740353469462,-1006.85,0.00016767,2]
[354227734,1740353469471,-1618.37,0.00016767,2]
[354227735,1740353469479,-744.24,0.00016767,2]
[354227736,1740353469489,-912.53,0.00016767,2]
[354227737,1740353469498,-500.0,0.00016767,2]
[354227738,1740353469507,-946.08,0.00016767,2]
[354227739,1740353469516,-249.017467,0.00016767,2]
[354227740,1740353469525,-500.0,0.00016767,2]
[354227741,1740353469534,-1675.32,0.00016767,2]
[354227742,1740353469545,-1433.69,0.00016767,2]
[354227743,1740353469554,-700.81,0.00016767,2]
[354227744,1740353469564,-1458.26,0.00016767,2]
[354227745,1740353469573,-753.58,0.00016767,2]
[354227746,1740353469583,-707.82,0.00016767,2]
[354227747,1740353469592,-1177.05,0.00016767,2]
[354227748,1740353469601,-751.63,0.00016767,2]
[354227749,1740353469612,-347.2944,0.00016767,2]
[354227750,1740353469621,-1614.73,0.00016767,2]
[354227751,1740353469630,-500.0,0.00016767,2]
[354227752,1740353469640,-500.0,0.00016767,2]
[354227753,1740353469649,-500.0,0.00016767,2]
[354227754,1740353469659,-500.0,0.00016767,2]
[354227755,1740353469668,-647.68,0.00016767,2]
[354227756,1740353469677,-360.45653298,0.00016767,2]
[354227757,1740353469686,-1759.43,0.00016767,2]
[354227758,1740353469697,-500.0,0.00016767,2]
[354227759,1740353469707,-500.0,0.00016767,2]
[354227760,1740353469716,-500.0,0.00016767,2]
[354227761,1740353469727,-797.18,0.00016767,2]
[354227762,1740353469736,-919.37,0.00016767,2]
[354227763,1740353469746,-500.0,0.00016767,2]
[354227764,1740353469755,-841.02,0.00016767,2]
[354227765,1740353469765,-848.57,0.00016767,2]
[354227766,1740353469774,-679.91,0.00016767,2]
[354227767,1740353469784,-500.0,0.00016767,2]
[354227768,1740353469794,-685.45,0.00016767,2]
[354227769,1740353469803,-1150.94,0.00016767,2]
[354227770,1740353469812,-640.58,0.00016767,2]
[354227771,1740353469821,-533.66,0.00016767,2]
[354227772,1740353469830,-500.0,0.00016767,2]
[354227773,1740353469840,-500.0,0.00016767,2]
[354227774,1740353469849,-500.0,0.00016767,2]
[354227775,1740353469859,-500.0,0.00016767,2]
[354227776,1740353469869,-933.73,0.00016767,2]
[354227777,1740353469878,-748.45,0.00016767,2]
[354227778,1740353469887,-500.0,0.00016767,2]
[354227779,1740353469897,-2003.28,0.00016767,2]
[354227780,1740353469906,-691.94,0.00016767,2]
[354227781,1740353469916,-500.0,0.00016767,2]
[354227782,1740353469925,-500.0,0.00016767,2]
[354227783,1740353469934,-727.95,0.00016767,2]
[354227784,1740353469943,-500.0,0.00016767,2]
[354227785,1740353469952,-699.11,0.00016767,2]
[354227786,1740353469961,-749.39,0.00016767,2]
[354227787,1740353469970,-1172.31,0.00016767,2]
[354227788,1740353469982,-544.31,0.00016767,2]
[354227789,1740353469992,-541.75,0.00016767,2]
[354227790,1740353470001,-794.72,0.00016767,2]
[354227791,1740353470011,-500.0,0.00016767,2]
[354227792,1740353470019,-1092.04,0.00016767,2]
[354227793,1740353470030,-1523.18,0.00016767,2]
[354227794,1740353470039,-500.0,0.00016767,2]
[354227795,1740353470048,-168.72365901,0.00016767,2]
[354227796,1740353470058,-1814.48,0.00016767,2]
[354227797,1740353470068,-768.27,0.00016767,2]
[354227798,1740353470077,-500.0,0.00016767,2]
[354227799,1740353470086,-945.62,0.00016767,2]
[354227800,1740353470095,-909.87,0.00016767,2]
[354227801,1740353470104,-756.42,0.00016767,2]
[354227802,1740353470114,-500.0,0.00016767,2]
[354227803,1740353470123,-940.07,0.00016767,2]
[354227804,1740353470133,-1635.88,0.00016767,2]
[354227805,1740353470143,-500.0,0.00016767,2]
[354227806,1740353470152,-1091.74,0.00016767,2]
[354227807,1740353470162,-500.0,0.00016767,2]
[354227808,1740353470172,-500.0,0.00016767,2]
[354227809,1740353470181,-500.0,0.00016767,2]
[354227810,1740353470191,-1556.84,0.00016767,2]
[354227811,1740353470201,-500.0,0.00016767,2]
[354227812,1740353470211,-500.0,0.00016767,2]
[354227813,1740353470220,-500.0,0.00016767,2]
[354227814,1740353470230,-500.0,0.00016767,2]
[354227815,1740353470240,-1812.38,0.00016767,2]
[354227816,1740353470250,-672.23,0.00016767,2]
[354227817,1740353470260,-500.0,0.00016767,2]
[354227818,1740353470271,-500.0,0.00016767,2]
[354227819,1740353470281,-761.96,0.00016767,2]
[354227820,1740353470292,-500.0,0.00016767,2]
[354227821,1740353470301,-500.0,0.00016767,2]
[354227822,1740353470311,-1030.55,0.00016767,2]
[354227823,1740353470321,-500.0,0.00016767,2]
[354227824,1740353470330,-500.0,0.00016767,2]
[354227825,1740353470339,-1056.73,0.00016767,2]
[354227826,1740353470349,-500.0,0.00016767,2]
[354227827,1740353470359,-500.0,0.00016767,2]
[354227828,1740353470368,-1094.0,0.00016767,2]
[354227829,1740353470379,-500.0,0.00016767,2]
[354227830,1740353470388,-500.0,0.00016767,2]
[354227831,1740353470398,-500.0,0.00016767,2]
[354227832,1740353470407,-702.59,0.00016767,2]
[354227833,1740353470421,-566.73,0.00016767,2]
[354227834,1740353470431,-1810.65,0.00016767,2]
[354227835,1740353470441,-1780.58,0.00016767,2]
[354227836,1740353470450,-2145.28,0.00016767,2]
[354227837,1740353470460,-500.0,0.00016767,2]
[354227838,1740353470469,-500.0,0.00016767,2]
[354227839,1740353470479,-500.0,0.00016767,2]
[354227840,1740353470489,-365.193291,0.00016767,2]
[354227841,1740353470498,-500.0,0.00016767,2]
[354227842,1740353470508,-500.0,0.00016767,2]
[354227843,1740353470518,-768.28,0.00016767,2]
[354227844,1740353470528,-500.0,0.00016767,2]
[354227845,1740353470541,-500.0,0.00016767,2]
[354227846,1740353470550,-1355.79,0.00016767,2]
[354227847,1740353470560,-3419.84,0.00016767,2]
[354227848,1740353470570,-500.0,0.00016767,2]
[354227849,1740353470579,-903.44,0.00016767,2]
[354227850,1740353470589,-500.0,0.00016767,2]
[354227851,1740353470599,-789.8,0.00016767,2]
[354227852,1740353470608,-500.0,0.00016767,2]
[354227853,1740353470618,-930.11,0.00016767,2]
[354227854,1740353470627,-3374.28,0.00016767,2]
[354227855,1740353470637,-1361.46,0.00016767,2]
[354227856,1740353470647,-500.0,0.00016767,2]
[354227857,1740353470657,-500.0,0.00016767,2]
[354227858,1740353470667,-861.81,0.00016767,2]
[354227859,1740353470676,-1538.75,0.00016767,2]
[354227860,1740353470686,-500.0,0.00016767,2]
[354227861,1740353470696,-2228.34,0.00016767,2]
[354227862,1740353470707,-1332.93,0.00016767,2]
[354227863,1740353470719,-1249.71,0.00016767,2]
[354227864,1740353470730,-500.0,0.00016767,2]
[354227865,1740353470739,-500.0,0.00016767,2]
[354227866,1740353470749,-3444.02,0.00016767,2]
[354227867,1740353470759,-500.0,0.00016767,2]
[354227868,1740353470768,-4982.05,0.00016767,2]
[354227869,1740353470778,-793.58,0.00016767,2]
[354227870,1740353470789,-4534.88,0.00016767,2]
[354227871,1740353470801,-996.8,0.00016767,2]
[354227872,1740353470811,-1506.19,0.00016767,2]
[354227873,1740353470820,-500.0,0.00016767,2]
[354227874,1740353470830,-500.0,0.00016767,2]
[354227875,1740353470840,-676.59,0.00016767,2]
[354227876,1740353470850,-1565.13,0.00016767,2]
[354227877,1740353470860,-1729.64,0.00016767,2]
[354227878,1740353470870,-2061.82,0.00016767,2]
[354227879,1740353470880,-914.7,0.00016767,2]
[354227880,1740353470890,-1510.76,0.00016767,2]
[354227881,1740353470900,-1515.73,0.00016767,2]
[354227882,1740353470909,-566.00081394,0.00016767,2]
[354227883,1740353470919,-1772.15,0.00016767,2]
[354227884,1740353470929,-1327.26,0.00016767,2]
[354227885,1740353470939,-500.0,0.00016767,2]
[354227886,1740353470948,-500.0,0.00016767,2]
[354227887,1740353470958,-8381.48,0.00016767,2]
[354227888,1740353470968,-2177.57,0.00016767,2]
[354227889,1740353470978,-988.11,0.00016767,2]
[354227890,1740353470991,-500.0,0.00016767,2]
[354227891,1740353471000,-500.0,0.00016767,2]
[354227892,1740353471010,-3529.02,0.00016767,2]
[354227893,1740353471019,-1863.94,0.00016767,2]
[354227894,1740353471028,-500.0,0.00016767,2]
[354227895,1740353471038,-500.0,0.00016767,2]
[354227896,1740353471050,-500.0,0.00016767,2]
[354227897,1740353471059,-3940.44,0.00016767,2]
[354227898,1740353471068,-509.08,0.00016767,2]
[354227899,1740353471078,-3108.77,0.00016767,2]
[354227900,1740353471087,-4880.47,0.00016767,2]
[354227901,1740353471097,-500.0,0.00016767,2]
[354227902,1740353471107,-988.44,0.00016767,2]
[354227903,1740353471117,-3416.71,0.00016767,2]
[354227904,1740353471127,-1033.08,0.00016767,2]
[354227905,1740353471137,-711.6,0.00016767,2]
[354227906,1740353471147,-3794.22,0.00016767,2]
[354227907,1740353471156,-687.99,0.00016767,2]
[354227908,1740353471166,-2183.59,0.00016767,2]
[354227909,1740353471175,-500.0,0.00016767,2]
[354227910,1740353471185,-666.84,0.00016767,2]
[354227911,1740353471194,-500.0,0.00016767,2]
[354227912,1740353471204,-1360.01,0.00016767,2]
[354227913,1740353471214,-2691.73,0.00016767,2]
[354227914,1740353471224,-2250.19,0.00016767,2]
[354227915,1740353471233,-768.38139766,0.00016767,2]
[354227916,1740353471583,-747.63860234,0.00016767,2]
[354227917,1740353471592,-500.0,0.00016767,2]
[354227918,1740353471602,-4047.89,0.00016767,2]
[354227919,1740353471612,-741.57,0.00016767,2]
[354227920,1740353471621,-961.14613866,0.00016767,2]
[354227921,1740353471633,-2082.41386134,0.00016767,2]
[354227922,1740353471643,-962.95,0.00016767,2]
[354227923,1740353471654,-500.0,0.00016767,2]
[354227924,1740353471664,-3262.59,0.00016767,2]
[354227925,1740353471674,-3135.8,0.00016767,2]
[354227926,1740353471683,-1050.70201371,0.00016767,2]
[354227927,1740353471695,-66.88798629,0.00016767,2]
[354227928,1740353471705,-2515.61660421,0.00016767,2]
[354227929,1740353471716,-8835.26339579,0.00016767,2]
[354227930,1740353471726,-2070.05,0.00016767,2]
[354227931,1740353471736,-684.7,0.00016767,2]
[354227932,1740353471746,-500.0,0.00016767,2]
[354227933,1740353471756,-2288.44,0.00016767,2]
[354227934,1740353471766,-1698.24,0.00016767,2]
[354227935,1740353471776,-2235.47,0.00016767,2]
[354227936,1740353471786,-688.3,0.00016767,2]
[354227937,1740353471798,-619.5,0.00016767,2]
[354227938,1740353471808,-500.0,0.00016767,2]
[354227939,1740353471818,-854.83,0.00016767,2]
[354227940,1740353471828,-1443.32,0.00016767,2]
[354227941,1740353471838,-1726.70960421,0.00016767,2]
[354227942,1740353471867,-500.0,0.00016438,2]
[354227943,1740353471876,-648.11039579,0.00016767,2]
[354227944,1740353471886,-3635.87,0.00016767,2]
[354227945,1740353471896,-2655.28,0.00016767,2]
[354227946,1740353471906,-2119.63,0.00016767,2]
[354227947,1740353471916,-3247.38,0.00016767,2]
[354227948,1740353471925,-590.04,0.00016767,2]
[354227949,1740353471935,-630.56097792,0.00016767,2]
[354227950,1740353471948,-453.94902208,0.00016767,2]
[354227951,1740353472230,-3009.5,0.00016767,2]
[354227952,1740353472241,-151.0,0.00016767,2]
[354227953,1740353472251,-1193.14,0.00016767,2]